fUST/lending_fUST_20250119
["ID","MTS","AMOUNT","RATE_DAILY","PERIOD"]
[349555920,1737293441483,-151.0,0.00022,4]
[349555922,1737293441492,-153.0,0.00022,2]
[349555923,1737293441501,-215.1283215,0.00022,2]
[349555926,1737293441510,-215.1283215,0.00022,2]
[349555928,1737293441520,-153.0,0.00022,2]
[349555929,1737293441529,-153.0,0.00022,2]
[349555931,1737293441538,-192.2277192,0.00022,2]
[349555933,1737293441547,-153.0,0.00022,2]
[349555935,1737293441557,-8546.0,0.00022,14]
[349555937,1737293441566,-9354.16677109,0.00022003,3]
[349555939,1737293441575,-2367.0,0.00022017,2]
[349555941,1737293441584,-1000.0,0.00022026,2]
[349555943,1737293441594,-255.0,0.0002204,6]
[349555945,1737293441603,-500.0,0.00022054,3]
[349555947,1737293441613,-500.0,0.00022054,3]
[349555949,1737293441622,-500.0,0.00022054,3]
[349555951,1737293441631,-500.0,0.00022054,3]
[349555953,1737293441641,-500.0,0.00022054,3]
[349555955,1737293441650,-500.0,0.00022054,3]
[349555957,1737293441659,-500.0,0.00022054,3]
[349555959,1737293441667,-500.0,0.00022054,3]
[349555961,1737293441678,-500.0,0.00022054,3]
[349555963,1737293441687,-500.0,0.00022054,3]
[349555965,1737293441696,-500.0,0.00022054,3]
[349555967,1737293441706,-500.0,0.00022054,3]
[349555969,1737293441715,-500.0,0.00022054,3]
[349555971,1737293441725,-514.98161789,0.00022054,3]
[349555973,1737293441734,-500.0,0.00022054,3]
[349555975,1737293441743,-519.60782419,0.00022054,3]
[349555977,1737293441752,-500.0,0.00022054,3]
[349555979,1737293441761,-500.0,0.00022054,3]
[349555981,1737293441770,-500.0,0.00022054,3]
[349555983,1737293441779,-500.0,0.00022054,3]
[349555985,1737293441789,-424.71215779,0.00022054,3]
[349555987,1737293441798,-500.0,0.00022054,3]
[349555989,1737293441808,-500.0,0.00022054,3]
[349555991,1737293441817,-500.0,0.00022054,3]
[349555993,1737293441827,-500.0,0.00022054,3]
[349555995,1737293441837,-500.0,0.00022054,3]
[349555997,1737293441846,-500.0,0.00022054,3]
[349555999,1737293441855,-643.34541767,0.00022054,3]
[349556001,1737293441864,-500.0,0.00022054,3]
[349556003,1737293441873,-500.0,0.00022054,3]
[349556005,1737293441882,-500.0,0.00022054,3]
[349556007,1737293441891,-500.0,0.00022054,3]
[349556009,1737293441901,-500.0,0.00022054,3]
[349556011,1737293441910,-902.5,0.00022054,3]
[349556013,1737293441919,-500.0,0.00022054,3]
[349556015,1737293441928,-960.29,0.00022054,3]
[349556017,1737293441938,-500.0,0.00022054,3]
[349556019,1737293441947,-500.0,0.00022054,3]
[349556021,1737293441956,-500.0,0.00022054,3]
[349556023,1737293441967,-500.0,0.00022054,3]
[349556025,1737293441977,-565.99477078,0.00022054,3]
[349556027,1737293441986,-500.0,0.00022054,3]
[349556029,1737293441995,-500.0,0.00022054,3]
[349556031,1737293442005,-582.54900596,0.00022054,3]
[349556033,1737293442015,-500.0,0.00022054,3]
[349556035,1737293442024,-500.0,0.00022054,3]
[349556037,1737293442033,-691.52,0.00022054,3]
[349556039,1737293442043,-505.87105537,0.00022054,3]
[349556041,1737293442052,-500.0,0.00022054,3]
[349556043,1737293442062,-223.1878319,0.00022054,3]
[349556045,1737293442071,-936.14,0.00022054,3]
[349556047,1737293442080,-500.0,0.00022054,3]
[349556049,1737293442090,-500.0,0.00022054,3]
[349556051,1737293442104,-740.69,0.00022054,3]
[349556053,1737293442113,-500.0,0.00022054,3]
[349556055,1737293442122,-284.93129817,0.00022054,3]
[349556057,1737293442135,-500.0,0.00022054,3]
[349556059,1737293442144,-500.0,0.00022054,3]
[349556062,1737293442156,-500.0,0.00022054,3]
[349556063,1737293442166,-500.0,0.00022054,3]
[349556073,1737293442242,-575.23,0.00022054,3]
[349556075,1737293442253,-500.0,0.00022054,3]
[349556077,1737293442262,-500.0,0.00022054,3]
[349556079,1737293442272,-870.26,0.00022054,3]
[349556081,1737293442282,-500.0,0.00022054,3]
[349556083,1737293442291,-500.0,0.00022054,3]
[349556085,1737293442301,-500.0,0.00022054,3]
[349556087,1737293442311,-500.0,0.00022054,3]
[349556089,1737293442321,-500.0,0.00022054,3]
[349556091,1737293442330,-500.0,0.00022054,3]
[349556093,1737293442339,-500.0,0.00022054,3]
[349556095,1737293442348,-179.49069095,0.00022054,3]
[349556097,1737293442358,-500.0,0.00022054,3]
[349556099,1737293442367,-500.0,0.00022054,3]
[349556101,1737293442376,-500.0,0.00022054,3]
[349556103,1737293442386,-500.0,0.00022054,3]
[349556105,1737293442395,-500.0,0.00022054,3]
[349556107,1737293442405,-500.0,0.00022054,3]
[349556109,1737293442414,-500.0,0.00022054,3]
[349556111,1737293442423,-500.0,0.00022054,3]
[349556113,1737293442432,-3259.22,0.00022054,3]
[349556115,1737293442441,-500.0,0.00022054,3]
[349556117,1737293442451,-500.0,0.00022054,3]
[349556119,1737293442460,-7011.17,0.00022054,3]
[349556121,1737293442469,-1028.54,0.00022054,3]
[349556123,1737293442478,-500.0,0.00022054,3]
[349556125,1737293442488,-500.0,0.00022054,3]
[349556127,1737293442497,-500.0,0.00022054,3]
[349556129,1737293442506,-500.0,0.00022054,3]
[349556131,1737293442516,-5066.99,0.00022054,3]
[349556133,1737293442525,-500.0,0.00022054,3]
[349556135,1737293442534,-925.08,0.00022054,2]
[349556137,1737293442543,-500.0,0.00022054,3]
[349556139,1737293442552,-1272.05,0.00022054,3]
[349556141,1737293442562,-15920.01,0.00022054,3]
[349556143,1737293442571,-500.0,0.00022054,3]
[349556145,1737293442579,-45116.32,0.00022054,3]
[349556147,1737293442589,-500.0,0.00022054,3]
[349556149,1737293442598,-968.05,0.00022054,3]
[349556151,1737293442607,-500.0,0.00022054,3]
[349556153,1737293442617,-5743.09,0.00022054,3]
[349556155,1737293442627,-512.60213496,0.00022054,3]
[349556157,1737293442641,-1380.82,0.00022054,3]
[349556159,1737293442652,-500.0,0.00022054,3]
[349556161,1737293442662,-500.0,0.00022054,3]
[349556163,1737293442673,-2110.0,0.00022054,3]
[349556165,1737293442682,-500.0,0.00022054,3]
[349556167,1737293442691,-500.0,0.00022054,3]
[349556169,1737293442701,-1098.66,0.00022054,3]
[349556171,1737293442710,-1937.75,0.00022054,3]
[349556173,1737293442721,-5816.97,0.00022054,3]
[349556175,1737293442729,-500.0,0.00022054,3]
[349556177,1737293442739,-500.0,0.00022054,3]
[349556179,1737293442748,-500.0,0.00022054,3]
[349556181,1737293442757,-5227.55,0.00022054,3]
[349556183,1737293442766,-1237.34,0.00022054,3]
[349556185,1737293442775,-603.39659877,0.00022054,3]
[349556187,1737293442784,-500.0,0.00022054,3]
[349556189,1737293442793,-500.0,0.00022054,3]
[349556191,1737293442802,-512.42205816,0.00022054,3]
[349556193,1737293442811,-1858.99,0.00022054,3]
[349556195,1737293442821,-364.33422462,0.00022054,3]
[349556197,1737293442830,-500.0,0.00022054,3]
[349556199,1737293442839,-500.0,0.00022054,3]
[349556201,1737293442849,-500.0,0.00022054,3]
[349556203,1737293442858,-500.0,0.00022054,3]
[349556205,1737293442867,-631.0,0.00022054,3]
[349556207,1737293442876,-500.0,0.00022054,3]
[349556209,1737293442885,-500.0,0.00022054,3]
[349556211,1737293442894,-500.0,0.00022054,3]
[349556214,1737293442905,-500.0,0.00022054,3]
[349556215,1737293442914,-500.0,0.00022054,3]
[349556218,1737293442923,-453.35064303,0.00022054,3]
[349556219,1737293442932,-25684.99,0.00022054,3]
[349556222,1737293442941,-500.0,0.00022054,3]
[349556224,1737293442950,-500.0,0.00022054,3]
[349556226,1737293442960,-500.0,0.00022054,3]
[349556228,1737293442969,-500.0,0.00022054,3]
[349556230,1737293442978,-500.0,0.00022054,3]
[349556233,1737293442988,-500.0,0.00022054,2]
[349556236,1737293442997,-500.0,0.00022054,3]
[349556238,1737293443006,-1369.54,0.00022054,3]
[349556240,1737293443015,-580.16864811,0.00022054,3]
[349556254,1737293443131,-2887.75135189,0.00022054,3]
[349556256,1737293443142,-500.0,0.00022054,3]
[349556258,1737293443153,-14510.75269529,0.00022054,3]
[349556350,1737293443932,-152.501663,0.0002189,2]
[349556352,1737293443942,-152.501663,0.0002189,2]
[349556354,1737293443951,-152.501663,0.0002189,2]
[349556357,1737293443960,-152.501663,0.000219,2]
[349556360,1737293443969,-57.27192188,0.00021908,2]
[349556389,1737293444259,-442.72807812,0.00021908,2]
[349556391,1737293444269,-136.082903,0.00021908,2]
[349556393,1737293444281,-331.26021841,0.00021908,2]
[349556396,1737293444291,-32.65687859,0.00021908,2]
[349556398,1737293444300,-500.0,0.00021908,2]
[349556399,1737293444309,-119.38712205,0.00021908,2]
[349556402,1737293444321,-380.61287795,0.00021908,2]
[349556403,1737293444330,-72.78913851,0.00021908,2]
[349556406,1737293444341,-326.5885,0.00021908,2]
[349556408,1737293444352,-100.62236149,0.00021908,2]
[349556410,1737293444362,-500.0,0.00021908,2]
[349556412,1737293444370,-291.95731821,0.00021908,2]
[349557202,1737293643573,344.69432545,0.00019954,2]
[349557203,1737293647490,1116.50057144,0.0002,2]
[349557204,1737293656573,1220.19554992,0.0002,2]
[349557205,1737293944854,229.79621697,0.00019954,2]
[349557206,1737294124360,188.064704,0.00013973,2]
[349557208,1737294134170,184.13674943,0.0002,2]
[349557209,1737294197941,303.16976112,0.000199,2]
[349557210,1737294246404,153.19747798,0.00019954,2]
[349557214,1737294540327,303.20009508,0.00019854,2]
[349557242,1737294636203,-454.80014263,0.00020053,4]
[349557243,1737294636212,-454.80014263,0.00020251,4]
[349557244,1737294636222,-500.0,0.00020337,2]
[349557245,1737294636232,-166.745629,0.00020352,2]
[349557246,1737294636241,-714.2077407,0.00020354,2]
[349557247,1737294636251,-188.064704,0.00020447,2]
[349557248,1737294636260,-454.80014263,0.0002045,4]
[349557249,1737294636270,-454.80014263,0.00020648,4]
[349557250,1737294636279,-300.0,0.00020843,2]
[349557251,1737294636288,-12421.3430489,0.00020844,2]
[349557252,1737294636298,-243.976902,0.00020844,2]
[349557253,1737294636307,-454.80014263,0.00020847,4]
[349557254,1737294636317,-454.459,0.0002095,2]
[349557255,1737294636326,-12982.0,0.00021,12]
[349557256,1737294636335,-451.09014264,0.00021045,6]
[349557257,1737294636345,-500.0,0.00021072,7]
[349557258,1737294636355,-8438.16367423,0.00021506,2]
[349557259,1737294636364,-154.75,0.00021603,2]
[349557260,1737294636374,-156.3325064,0.00021644,2]
[349557261,1737294636383,-436.4247072,0.00021644,2]
[349557262,1737294636393,-500.0,0.00021757,9]
[349557263,1737294636402,-8438.16367424,0.0002177,2]
[349557264,1737294636413,-204.79379082,0.00021816,2]
[349557266,1737294636423,-384.0489676,0.00021833,2]
[349557268,1737294636432,-609.24324045,0.00021875,2]
[349557270,1737294636441,-886.01660708,0.000219,2]
[349557272,1737294636451,-8803.27601837,0.000219,3]
[349557274,1737294636464,-245.0,0.00021908,2]
[349557276,1737294636473,-500.0,0.00021916,2]
[349557278,1737294636482,-500.0,0.00021916,2]
[349557281,1737294636492,-500.0,0.00021916,2]
[349557283,1737294636502,-500.0,0.00021916,2]
[349557285,1737294636511,-318.64574348,0.00021916,2]
[349557287,1737294636521,-500.0,0.00021916,2]
[349557289,1737294636533,-235.78660761,0.00021916,2]
[349557291,1737294636542,-500.0,0.00021916,2]
[349557293,1737294636551,-500.0,0.00021916,2]
[349557295,1737294636561,-394.70719576,0.00021916,2]
[349557297,1737294636570,-500.0,0.00021916,2]
[349557299,1737294636579,-500.0,0.00021916,2]
[349557301,1737294636588,-500.0,0.00021916,2]
[349557303,1737294636597,-500.0,0.00021916,2]
[349557305,1737294636606,-500.0,0.00021916,2]
[349557307,1737294636615,-500.0,0.00021916,2]
[349557309,1737294636624,-397.10067101,0.00021916,2]
[349557311,1737294636634,-500.0,0.00021916,2]
[349557313,1737294636643,-500.0,0.00021916,2]
[349557315,1737294636652,-500.0,0.00021916,2]
[349557316,1737294636662,-500.0,0.00021916,2]
[349557317,1737294636672,-500.0,0.00021916,2]
[349557318,1737294636681,-500.0,0.00021916,2]
[349557319,1737294636690,-500.0,0.00021916,2]
[349557320,1737294636699,-500.0,0.00021916,2]
[349557321,1737294636708,-500.0,0.00021916,2]
[349557322,1737294636718,-500.0,0.00021916,2]
[349557323,1737294636727,-500.0,0.00021916,2]
[349557324,1737294636738,-500.0,0.00021916,2]
[349557325,1737294636748,-500.0,0.00021916,2]
[349557326,1737294636758,-500.0,0.00021916,2]
[349557327,1737294636770,-500.0,0.00021916,2]
[349557328,1737294636781,-500.0,0.00021916,2]
[349557329,1737294636794,-375.31077391,0.00021916,2]
[349557330,1737294636803,-500.0,0.00021916,2]
[349557331,1737294636812,-500.0,0.00021916,2]
[349557332,1737294636821,-500.0,0.00021916,2]
[349557333,1737294636831,-500.0,0.00021916,2]
[349557334,1737294636842,-500.0,0.00021916,2]
[349557335,1737294636851,-500.0,0.00021916,2]
[349557336,1737294636862,-516.81488801,0.00021916,2]
[349557337,1737294636874,-500.0,0.00021916,2]
[349557338,1737294636884,-500.0,0.00021916,2]
[349557339,1737294636897,-500.0,0.00021916,2]
[349557340,1737294636908,-500.0,0.00021916,2]
[349557341,1737294636917,-500.0,0.00021916,2]
[349557342,1737294636927,-500.0,0.00021916,2]
[349557343,1737294636936,-500.0,0.00021916,2]
[349557344,1737294636945,-500.0,0.00021916,2]
[349557345,1737294636954,-211.219,0.00021916,2]
[349557346,1737294636964,-353.90795494,0.00021917,3]
[349557347,1737294636973,-500.61545898,0.00021917,3]
[349557348,1737294636982,-500.0,0.00021917,3]
[349557349,1737294636994,-500.57962213,0.00021917,3]
[349557350,1737294637005,-153.9183523,0.00021917,3]
[349557351,1737294637014,-500.45842542,0.00021917,3]
[349557352,1737294637023,-500.54815202,0.00021917,3]
[349557353,1737294637034,-500.0,0.00021917,3]
[349557354,1737294637044,-500.45690586,0.00021917,3]
[349557355,1737294637054,-500.0,0.00021917,3]
[349557356,1737294637063,-500.0,0.00021917,3]
[349557357,1737294637074,-500.0,0.00021917,3]
[349557358,1737294637083,-457.84816199,0.00021917,3]
[349557359,1737294637092,-547.62912889,0.00021917,3]
[349557360,1737294637101,-500.0,0.00021917,3]
[349557361,1737294637111,-500.0,0.00021917,3]
[349557362,1737294637120,-500.0,0.00021917,3]
[349557363,1737294637129,-204.103233,0.00021917,3]
[349557364,1737294637138,-500.0,0.00021917,3]
[349557365,1737294637148,-500.0,0.00021917,3]
[349557366,1737294637157,-500.0,0.00021917,3]
[349557367,1737294637166,-500.0,0.00021917,3]
[349557368,1737294637176,-500.0,0.00021917,3]
[349557369,1737294637186,-500.0,0.00021917,3]
[349557370,1737294637195,-426.1562905,0.00021917,3]
[349557371,1737294637205,-508.10976406,0.00021917,3]
[349557372,1737294637215,-843.32,0.00021917,3]
[349557373,1737294637224,-500.0,0.00021917,3]
[349557374,1737294637234,-500.0,0.00021917,3]
[349557375,1737294637243,-500.0,0.00021917,3]
[349557376,1737294637253,-1347.58,0.00021917,3]
[349557377,1737294637262,-505.41595503,0.00021917,3]
[349557378,1737294637271,-500.0,0.00021917,3]
[349557379,1737294637280,-500.0,0.00021917,3]
[349557380,1737294637290,-500.0,0.00021917,3]
[349557381,1737294637299,-500.0,0.00021917,3]
[349557382,1737294637309,-500.0,0.00021917,3]
[349557383,1737294637319,-500.0,0.00021917,3]
[349557384,1737294637446,-500.0,0.00021917,3]
[349557385,1737294637456,-500.0,0.00021917,3]
[349557386,1737294637468,-696.07,0.00021917,3]
[349557387,1737294637477,-500.0,0.00021917,3]
[349557388,1737294637490,-500.0,0.00021917,3]
[349557389,1737294637499,-500.0,0.00021917,3]
[349557390,1737294637509,-500.0,0.00021917,3]
[349557391,1737294637519,-500.0,0.00021917,3]
[349557392,1737294637528,-500.0,0.00021917,3]
[349557393,1737294637539,-1154.84,0.00021917,3]
[349557394,1737294637549,-500.0,0.00021917,3]
[349557395,1737294637558,-500.0,0.00021917,3]
[349557396,1737294637568,-500.0,0.00021917,3]
[349557397,1737294637578,-500.0,0.00021917,3]
[349557398,1737294637587,-591.12472566,0.00021917,3]
[349557399,1737294637597,-500.0,0.00021917,3]
[349557400,1737294637607,-500.0,0.00021917,3]
[349557401,1737294637616,-500.0,0.00021917,3]
[349557402,1737294637626,-500.0,0.00021917,3]
[349557403,1737294637636,-500.0,0.00021917,3]
[349557404,1737294637645,-500.0,0.00021917,3]
[349557405,1737294637655,-509.48632032,0.00021917,3]
[349557406,1737294637666,-678.96,0.00021917,3]
[349557407,1737294637675,-500.0,0.00021917,3]
[349557408,1737294637685,-557.13042743,0.00021917,3]
[349557409,1737294637695,-500.0,0.00021917,3]
[349557410,1737294637704,-500.0,0.00021917,3]
[349557411,1737294637714,-500.0,0.00021917,3]
[349557412,1737294637723,-500.0,0.00021917,3]
[349557413,1737294637732,-500.0,0.00021917,3]
[349557414,1737294637741,-500.0,0.00021917,3]
[349557415,1737294637750,-500.0,0.00021917,3]
[349557416,1737294637759,-500.0,0.00021917,3]
[349557417,1737294637768,-500.0,0.00021917,3]
[349557418,1737294637777,-500.0,0.00021917,3]
[349557419,1737294637786,-500.0,0.00021917,3]
[349557420,1737294637795,-1000.0,0.00021917,3]
[349557421,1737294637805,-500.0,0.00021917,3]
[349557422,1737294637815,-500.0,0.00021917,3]
[349557423,1737294637826,-500.0,0.00021917,3]
[349557424,1737294637837,-500.0,0.00021917,3]
[349557425,1737294637847,-818.57,0.00021917,3]
[349557426,1737294637856,-500.0,0.00021917,3]
[349557427,1737294637867,-500.0,0.00021917,3]
[349557428,1737294637877,-500.0,0.00021917,3]
[349557429,1737294637886,-500.0,0.00021917,3]
[349557430,1737294637895,-500.0,0.00021917,3]
[349557431,1737294637904,-498.93268323,0.00021917,3]
[349557432,1737294637915,-500.0,0.00021917,3]
[349557433,1737294637924,-500.0,0.00021917,3]
[349557434,1737294637933,-500.0,0.00021917,3]
[349557435,1737294637942,-500.0,0.00021917,3]
[349557436,1737294637951,-500.0,0.00021917,3]
[349557437,1737294637960,-500.0,0.00021917,3]
[349557438,1737294637969,-500.0,0.00021917,3]
[349557439,1737294637978,-500.0,0.00021917,3]
[349557440,1737294637987,-500.0,0.00021917,3]
[349557441,1737294637997,-500.0,0.00021917,3]
[349557442,1737294638007,-500.0,0.00021917,3]
[349557443,1737294638016,-500.0,0.00021917,3]
[349557444,1737294638025,-500.0,0.00021917,3]
[349557445,1737294638035,-500.0,0.00021917,3]
[349557446,1737294638044,-290.81513287,0.00021917,3]
[349557447,1737294638053,-868.82,0.00021917,2]
[349557448,1737294638062,-500.0,0.00021917,3]
[349557449,1737294638072,-305.97,0.00021917,3]
[349557450,1737294638082,-500.0,0.00021917,3]
[349557451,1737294638091,-4722.62,0.00021917,3]
[349557452,1737294638101,-500.0,0.00021917,3]
[349557453,1737294638111,-500.0,0.00021917,3]
[349557455,1737294638122,-500.0,0.00021917,3]
[349557456,1737294638131,-942.83,0.00021917,3]
[349557458,1737294638140,-500.0,0.00021917,3]
[349557459,1737294638150,-500.0,0.00021917,3]
[349557460,1737294638160,-503.64797781,0.00021917,3]
[349557461,1737294638169,-500.0,0.00021917,3]
[349557462,1737294638179,-500.0,0.00021917,3]
[349557463,1737294638189,-500.0,0.00021917,3]
[349557465,1737294638199,-14662.9,0.00021917,3]
[349557466,1737294638217,-3144.75,0.00021917,3]
[349557467,1737294638229,-500.0,0.00021917,3]
[349557468,1737294638239,-41773.3,0.00021917,3]
[349557469,1737294638249,-500.0,0.00021917,3]
[349557470,1737294638259,-500.0,0.00021917,3]
[349557471,1737294638270,-500.0,0.00021917,3]
[349557473,1737294638279,-6523.23,0.00021917,3]
[349557475,1737294638290,-500.0,0.00021917,3]
[349557478,1737294638299,-500.0,0.00021917,3]
[349557480,1737294638309,-500.0,0.00021917,3]
[349557482,1737294638319,-1265.75,0.00021917,3]
[349557484,1737294638328,-4791.92,0.00021917,3]
[349557485,1737294638339,-241.00610373,0.00021917,3]
[349557486,1737294638348,-500.0,0.00021917,3]
[349557488,1737294638358,-1007.1,0.00021917,3]
[349557490,1737294638367,-500.0,0.00021917,3]
[349557492,1737294638377,-500.0,0.00021917,3]
[349557494,1737294638387,-944.49,0.00021917,3]
[349557496,1737294638398,-500.0,0.00021917,3]
[349557497,1737294638407,-5264.5,0.00021917,3]
[349557499,1737294638417,-500.0,0.00021917,3]
[349557501,1737294638427,-500.0,0.00021917,3]
[349557503,1737294638437,-578.42,0.00021917,3]
[349557504,1737294638447,-500.0,0.00021917,3]
[349557505,1737294638462,-1934.17,0.00021917,3]
[349557506,1737294638472,-561.63324298,0.00021917,3]
[349557507,1737294638481,-5344.74,0.00021917,3]
[349557508,1737294638491,-555.57328101,0.00021917,3]
[349557509,1737294638502,-500.0,0.00021917,3]
[349557510,1737294638512,-500.0,0.00021917,3]
[349557512,1737294638522,-1776.28,0.00021917,3]
[349557514,1737294638533,-500.0,0.00021917,3]
[349557516,1737294638543,-1194.18,0.00021917,3]
[349557518,1737294638553,-501.43794502,0.00021917,3]
[349557520,1737294638563,-10750.59,0.00021917,3]
[349557522,1737294638572,-500.0,0.00021917,3]
[349557524,1737294638582,-306.15922286,0.00021917,3]
[349557526,1737294638592,-500.0,0.00021917,2]
[349557528,1737294638602,-1704.07,0.00021917,3]
[349557530,1737294638611,-500.0,0.00021917,3]
[349557532,1737294638621,-14816.63,0.00021917,3]
[349557534,1737294638632,-500.0,0.00021917,3]
[349557536,1737294638642,-510.13996628,0.00021917,3]
[349557538,1737294638651,-500.0,0.00021917,3]
[349557540,1737294638661,-4715.02,0.00021917,3]
[349557542,1737294638671,-500.0,0.00021917,3]
[349557544,1737294638681,-500.0,0.00021917,3]
[349557546,1737294638691,-23544.57,0.00021917,3]
[349557548,1737294638700,-500.0,0.00021917,3]
[349557550,1737294638709,-3178.92,0.00021917,3]
[349557552,1737294638719,-396.54,0.00021917,3]
[349557554,1737294638729,-1255.41,0.00021917,3]
[349557556,1737294638739,-500.0,0.00021917,3]
[349557559,1737294638749,-3964.74,0.00021917,3]
[349557561,1737294638759,-500.0,0.00021917,3]
[349557563,1737294638768,-500.0,0.00021917,3]
[349557565,1737294638778,-500.0,0.00021917,3]
[349557567,1737294638787,-500.0,0.00021917,3]
[349557568,1737294638797,-1938.59,0.00021917,3]
[349557569,1737294638806,-561.93,0.00021917,3]
[349557571,1737294638816,-500.0,0.00021917,3]
[349557573,1737294638825,-500.0,0.00021917,3]
[349557575,1737294638835,-500.0,0.00021917,3]
[349557577,1737294638845,-1714.83,0.00021917,3]
[349557580,1737294638856,-740.14,0.00021917,3]
[349557582,1737294638866,-1166.05,0.00021917,3]
[349557584,1737294638876,-1567.94,0.00021917,3]
[349557586,1737294638885,-500.0,0.00021917,3]
[349557588,1737294638895,-500.0,0.00021917,3]
[349557590,1737294638905,-500.0,0.00021917,3]
[349557592,1737294638915,-500.0,0.00021917,3]
[349557594,1737294638924,-1134.88,0.00021917,3]
[349557596,1737294638933,-1416.92,0.00021917,3]
[349557598,1737294638943,-500.0,0.00021917,3]
[349557600,1737294638952,-500.0,0.00021917,3]
[349557602,1737294638961,-983.14,0.00021917,3]
[349557604,1737294638971,-500.0,0.00021917,3]
[349557606,1737294638980,-3054.08,0.00021917,3]
[349557608,1737294638990,-153.0,0.00021918,2]
[349557610,1737294638999,-153.0,0.00021918,2]
[349557613,1737294639009,-153.0,0.00021918,2]
[349557615,1737294639019,-153.0,0.00021918,2]
[349557617,1737294639028,-153.0,0.00021918,2]
[349557619,1737294639038,-8006.88,0.00022,4]
[349557621,1737294639048,-286.0,0.00022,6]
[349557623,1737294639057,-153.0,0.00022,2]
[349557625,1737294639067,-8803.27601829,0.00022003,3]
[349557627,1737294639078,-172.9554584,0.00022027,2]
[349557629,1737294639087,-153.0,0.00022027,2]
[349557631,1737294639097,-432.30506985,0.00022053,2]
[349557633,1737294639106,-619.12611685,0.00022053,2]
[349557635,1737294639116,-500.0,0.00022054,3]
[349557637,1737294639125,-500.0,0.00022054,3]
[349557639,1737294639135,-500.0,0.00022054,3]
[349557641,1737294639144,-500.0,0.00022054,3]
[349557642,1737294639154,-500.0,0.00022054,3]
[349557643,1737294639166,-500.0,0.00022054,3]
[349557644,1737294639177,-500.0,0.00022054,3]
[349557645,1737294639187,-843.32,0.00022054,3]
[349557646,1737294639196,-500.0,0.00022054,3]
[349557647,1737294639206,-1347.58,0.00022054,3]
[349557648,1737294639216,-500.0,0.00022054,3]
[349557649,1737294639226,-501.74947503,0.00022054,3]
[349557650,1737294639235,-500.0,0.00022054,3]
[349557651,1737294639244,-500.0,0.00022054,3]
[349557652,1737294639254,-500.0,0.00022054,3]
[349557653,1737294639263,-500.0,0.00022054,3]
[349557654,1737294639273,-500.0,0.00022054,3]
[349557655,1737294639282,-696.07,0.00022054,3]
[349557656,1737294639291,-500.0,0.00022054,3]
[349557657,1737294639301,-500.0,0.00022054,3]
[349557658,1737294639311,-1154.84,0.00022054,3]
[349557659,1737294639320,-500.0,0.00022054,3]
[349557660,1737294639330,-502.2760082,0.00022054,3]
[349557661,1737294639340,-678.96,0.00022054,3]
[349557662,1737294639350,-500.0,0.00022054,3]
[349557663,1737294639359,-500.0,0.00022054,3]
[349557664,1737294639369,-500.0,0.00022054,3]
[349557665,1737294639378,-500.0,0.00022054,3]
[349557666,1737294639388,-500.0,0.00022054,3]